Cogmind - Beta 16.1 @@@ ROGUE MODE // 2026.02.20 @ 08:32:41 Player: ae Result: Destroyed by Y-72 Warden with Railgun Performance ------------- Evolutions (7) 3500 Regions Visited (13) 2600 Robots Destroyed (153) 765 Value Destroyed (6449) 6449 Prototype IDs (22) 440 Alien Tech Used (4) 800 Bonus (3749) 3749 TOTAL SCORE: 18303 Bonus ------- Met Zhirov 300 Used Core Reset Matrix 3000 Scanned by Researcher 500 Friendly Fire -51 Cogmind --------- Core Integrity 0/1300 Matter 300/300 Energy 340/340 System Corruption 0% Temperature Cool (9) Movement Treading (145) Location -3/Quarantine Parts ------- > --- POWER (2) -------- Particle Reactor > --- PROPULSION (4) --- Biometal Medium Treads > --- UTILITY (12) ----- Improved Targeting Computer Advanced Target Analyzer Advanced Target Analyzer Advanced Target Analyzer Improved Corruption Screen > --- WEAPON (3) ------- Enhanced Force Lance > --- INVENTORY (5) ---- (None) Peak State ------------ > --- POWER ------------ Particle Reactor Micro Antimatter Reactor > --- PROPULSION ------- Centrium Heavy Treads Advanced Heavy Siege Treads > --- UTILITY ---------- Advanced Heat Sink Compact Matter Pod Compact Matter Pod Long-range Sensor Array Improved Targeting Computer Advanced Target Analyzer Advanced Target Analyzer Advanced Target Analyzer Stasis Canceller Advanced Focal Shield Improved Corruption Screen Advanced Corruption Screen > --- WEAPON ----------- Sigix Broadsword Enhanced Force Lance > --- INVENTORY -------- Particle Reactor Particle Reactor Advanced Heavy Siege Treads Advanced Power Amplifier [Rating: 159] Favorites ----------- Power Deuterium Engine Engine Deuterium Engine Power Core Neutrino Core Reactor Particle Reactor Propulsion Carbon-fiber Leg Treads Light Treads Leg Carbon-fiber Leg Wheel Subdweller Monowheel Flight Unit Q-thruster Utility Medium Storage Unit Device Advanced Heat Sink Storage Medium Storage Unit Processor Improved Targeting Computer Hackware Advanced Hacking Suite Protection Hardened Medium Armor Plating Weapon Grenade Launcher Energy Gun Plasma Rifle Energy Cannon Compact HERF Cannon Ballistic Gun High-powered Shotgun Ballistic Cannon Linear Accelerator Launcher Grenade Launcher Impact Weapon Thunder Hammer Slashing Weapon Scythe Piercing Weapon Enhanced Force Lance Build | -11 -10 -10 -8 -7 -6 -5 -4 -4 -4 -4 -3 -3 -3 ------- Run | Yrd Mat Sub Mat Fac Fac Fac Fac Upp Upp Zhi Pro Res Qua Slots Evolved 14 | . . . 4 2 2 2 2 . . . . 2 . Power 1 | . . . . 1 . . . . . . . . . Propulsion 2 | . . . 1 1 . . . . . . . . . Utility 10 | . . . 2 . 2 2 2 . . . . 2 . Weapon 1 | . . . 1 . . . . . . . . . . Parts Attached 137 | 4 7 7 13 1 6 6 5 4 3 6 6 48 21 Power 15 | 1 1 . 1 . 1 . . . 1 1 . 6 3 Engine 4 | 1 1 . 1 . 1 . . . . . . . . Core 1 | . . . . . . . . . 1 . . . . Reactor 10 | . . . . . . . . . . 1 . 6 3 Propulsion 32 | 2 . 3 3 1 1 4 . 1 . 3 1 11 2 Treads 11 | 2 . 1 . . . . . . . . . 6 2 Leg 17 | . . 1 2 1 1 4 . 1 . 3 1 3 . Wheel 3 | . . 1 1 . . . . . . . . 1 . Hover . | . . . . . . . . . . . . . . Flight 1 | . . . . . . . . . . . . 1 . Utility 62 | 1 2 2 8 . 2 2 4 3 1 2 4 21 10 Device 28 | . . . . . 1 2 1 1 1 1 2 16 3 Storage 10 | 1 2 . 2 . . . . . . . 2 . 3 Processor 14 | . . . 5 . 1 . 1 . . . . 3 4 Hackware 1 | . . . . . . . . . . 1 . . . Protection 9 | . . 2 1 . . . 2 2 . . . 2 . Artifact . | . . . . . . . . . . . . . . Weapon 28 | . 4 2 1 . 2 . 1 . 1 . 1 10 6 Energy Gun 9 | . 1 . . . . . . . . . 1 4 3 Energy Cannon 1 | . . . . . . . . . . . . 1 . Ballistic Gun 5 | . 1 . . . 1 . . . . . . 2 1 Ballistic Cannon 2 | . . . . . . . . . . . . 1 1 Launcher 7 | . 2 2 1 . 1 . 1 . . . . . . Special Weapon . | . . . . . . . . . . . . . . Impact Weapon 1 | . . . . . . . . . . . . 1 . Slashing Weapon 2 | . . . . . . . . . 1 . . . 1 Piercing Weapon 1 | . . . . . . . . . . . . 1 . Special Melee Weapon . | . . . . . . . . . . . . . . Unidentified Prototypes 12 | . . . . . 1 . 1 . . 4 1 2 3 Parts Lost 81 | . . 4 1 . . . 2 4 . . 17 27 26 Power 10 | . . . . . . . 1 . . . 1 6 2 Propulsion 12 | . . 1 . . . . . 1 . . . 6 4 Utility 41 | . . 1 1 . . . 1 2 . . 13 10 13 Weapon 18 | . . 2 . . . . . 1 . . 3 5 7 Highest Loss Streak 16 | . . 1 1 . . . 2 4 . . 10 13 16 To Critical Strikes 1 | . . . . . . . . . . . . . 1 Average Backups 7 | 4 9 3 8 9 8 8 8 7 6 8 7 7 6 Power . | . . . 1 1 . . . . . . 1 1 1 Propulsion 2 | 2 4 2 . . . 3 3 2 2 1 3 3 1 Utility 2 | . . . 2 5 3 2 3 3 3 4 1 . . Weapon 2 | 1 4 . 3 2 4 2 1 1 1 2 . 1 2 Tool/Special . | . . . . . . . . . . . . . . Unused Backups 25 | . . 9 4 4 1 . 1 . . . . 3 3 Power 3 | . . . 1 . . . . . . . . . 2 Propulsion 8 | . . 4 1 . . . 1 . . . . 2 . Utility 5 | . . 1 2 1 1 . . . . . . . . Weapon 8 | . . 3 . 3 . . . . . . . 1 1 Tool/Special 1 | . . 1 . . . . . . . . . . . Average Slot Usage (%) 83 | . 89 82 93 90 83 86 95 83 87 88 66 75 81 Engine 6 | . 10 14 9 7 12 11 9 5 5 3 1 . . Reactor 2 | . . . . . . . . . . 1 3 7 8 Treads 6 | . 28 18 3 . . . . . . . . 4 8 Leg 13 | . . 6 14 28 26 23 21 19 21 21 20 7 . Wheel 1 | . . 2 8 . . . . . . . . . . Device 10 | . . . . . 6 11 20 14 10 9 7 20 20 Storage 7 | . 23 . 9 7 6 5 5 5 5 5 8 8 9 Processor 11 | . . . 14 15 19 17 15 15 15 15 4 9 20 Protection 7 | . . 13 8 7 6 5 10 13 21 18 4 1 1 Energy Gun 1 | . 2 . . . . . . . . . 1 3 3 Launcher 10 | . 20 25 24 23 3 8 11 8 1 . 1 . . Slashing Weapon 1 | . . . . . . . . . 3 5 5 . 2 Peak Build Rating 159 | 4 8 11 28 32 40 55 76 75 66 91 97 137 159 Average Rating 61 | 3 6 9 23 31 37 48 68 63 63 75 70 101 140 On Entrance 45 | . 3 8 10 28 32 36 55 70 55 66 91 60 125 Avg Prop Armor Cover (%) 7 | 41 38 4 5 . . . . . . . . 6 39 Naked Turns . | . . . . . . . . . . . . . . Heaviest Build 92 | 8 53 53 44 39 49 54 72 65 69 70 70 92 77 Greatest Support 160 | 40 40 40 45 63 63 73 73 73 65 110 110 160 160 Greatest Overweight (x) 5 | 1 1 1 2 . . . . 1 1 1 . 5 2 Average Overweight (x) . | . . . . . . . . . . . . 1 . Largest Inventory Capacity 20 | 8 20 20 10 10 10 10 10 10 10 10 10 10 10 Average Capacity 9 | 7 16 5 9 10 10 10 10 10 10 10 10 10 7 Most Carried 12 | 8 11 12 10 10 10 10 10 10 7 10 10 10 10 Average Carried 7 | 4 9 4 9 9 9 9 9 8 6 8 7 7 7 Final Capacity 20 | 8 20 5 10 10 10 10 10 10 10 10 10 10 5 Final Carried 11 | 8 11 4 10 10 9 10 10 7 7 10 6 10 . Class Distribution -------------------- 49% | Mutant 18% | Scavenger-Mutant 17% | Bomber 6% | Scavenger-Tank 5% | Scavenger-Gunner Dominant Class ---------------- Mutant | -10/Materials Mutant | -10/Subcaves Bomber | -8/Materials Bomber | -7/Factory Mutant | -6/Factory Mutant | -5/Factory Mutant | -4/Factory Bomber | -4/Upper Caves Scavenger-Mutant | -4/Upper Caves Scavenger-Mutant | -4/Zhirov Mutant | -3/Proximity Caves Scavenger-Gunner | -3/Research Scavenger-Mutant | -3/Quarantine Resources | -11 -10 -10 -8 -7 -6 -5 -4 -4 -4 -4 -3 -3 -3 ----------- Run | Yrd Mat Sub Mat Fac Fac Fac Fac Upp Upp Zhi Pro Res Qua Matter Collected 4338 | 198 254 226 690 20 175 389 92 239 89 104 131 1141 590 Remotely 128 | . . . . . . 36 92 . . . . . . Salvage Created 6342 | . 403 216 784 34 228 294 131 447 55 318 402 1514 1516 Parts 276 | . 33 17 28 2 11 10 9 24 7 2 6 51 76 Haulers Intercepted 7 | . 1 . 3 1 1 . . . . . . 1 . Recyclers Shooed 5 | . 2 . 1 . . 2 . . . . . . . Parts Field Recycled . | . . . . . . . . . . . . . . Retrieved Matter . | . . . . . . . . . . . . . . Parts Self-Destructed 27 | . . 9 . . . . . 6 7 1 4 . . Prevented 6 | . . . . . . . . 6 . . . . . Parts Restored . | . . . . . . . . . . . . . . Kills | -11 -10 -10 -8 -7 -6 -5 -4 -4 -4 -4 -3 -3 -3 ------- Run | Yrd Mat Sub Mat Fac Fac Fac Fac Upp Upp Zhi Pro Res Qua Combat Hostiles Destroyed 109 | . 9 11 10 . 3 3 2 16 4 . 10 23 18 Melee 18 | . . . . . . . . 1 . . 4 3 10 Guns 24 | . 6 . . . . . . . . . . 10 8 Cannons 8 | . . . . . . . . . . . . 8 . AOE 56 | . 3 11 9 . 3 3 2 15 4 . 6 . . Classes Destroyed 18 | . 8 3 2 . . . . 1 . . 1 2 1 Worker 13 | . 2 . 2 . 2 3 2 . . . . 1 1 Builder 6 | . 3 . 2 . . . . . . . . . 1 Tunneler 1 | . . . . . . . . . . . . 1 . Hauler 7 | . 1 . 3 1 1 . . . . . . 1 . Recycler 5 | . 2 . 2 . . . . . . . . . 1 Mechanic 1 | . . . 1 . . . . . . . . . . Operator 3 | . 1 . 1 . . . . . . . . . 1 Turret 2 | . . 2 . . . . . . . . . . . Watcher 4 | . 2 . . . . 1 . . . . . . 1 Swarmer 27 | . 6 3 . . 3 . . 9 4 . . . 2 Grunt 52 | . 3 . 8 . . 3 2 6 . . 8 12 10 Brawler 2 | . . . . . . . . . . . 1 1 . Duelist 2 | . . . . . . . . 1 . . 1 . . Researcher 2 | . . . . . . . . . . . . . 2 Sentry 4 | . . 1 1 . . . . . . . . 2 . Hunter 5 | . . . 1 . . . . . . . . 2 2 Programmer 10 | . . . . . . . . . . . . 6 4 Subdweller 7 | . . 7 . . . . . . . . . . . Best Kill Streak 9 | . 7 5 5 1 4 4 4 9 4 . 4 5 7 Combat Bots Only 9 | . 5 4 3 . 3 3 2 9 4 . 4 5 4 Max Kills in Single Turn 4 | . 2 3 2 1 4 2 2 4 3 . 2 1 1 Gunslinging 1 | . 1 . . . . . . . . . . . . Exploded 4 | . 2 3 2 . 3 2 1 4 3 . 2 . . Melee 1 | . . . . . . . . 1 . . 1 1 1 Uniques/NPCs Destroyed . | . . . . . . . . . . . . . . Combat | -11 -10 -10 -8 -7 -6 -5 -4 -4 -4 -4 -3 -3 -3 -------- Run | Yrd Mat Sub Mat Fac Fac Fac Fac Upp Upp Zhi Pro Res Qua Hostile Shots Fired 977 | . 35 41 20 6 5 . 4 31 11 . 122 331 371 Missed 280 | . 13 12 6 2 1 . 2 16 6 . 39 95 88 Hits 697 | . 22 29 14 4 4 . 2 15 5 . 83 236 283 Melee 20 | . . . . . . . . 4 . . 16 . . Projectile 677 | . 22 29 14 4 4 . 2 11 5 . 67 236 283 Critical Strikes 41 | . . 1 2 . . . . 1 1 . 8 12 16 Part Disruptions 5 | . . . . . . . . . . . . 1 4 Damage Taken 13894 | . 414 479 287 21 52 . 316 433 83 . 2149 4652 5008 Core 1688 | . 56 13 4 . 12 . . . 20 . 263 617 703 Absorbed by Shields 153 | . . . . . . . . . . . . 153 . Reduced by Siege Mode 196 | . . . . . . . . . . . . 126 70 Redirected to Shielding 68 | . . . . . . . . . . . 68 . . Ignored by Resistances 529 | . . . . . . . . . . . 31 150 348 Regen/Repaired (Parts) 634 | . . . . . . . . . . . . . 634 Core Remaining (%) 91 | 100 . 72 99 100 98 100 . . . . 70 . . Volleys Fired 240 | . 26 14 28 1 22 7 5 16 3 . 15 77 26 Largest 3 | . 2 2 3 1 1 2 2 3 2 . 2 3 3 Hottest 244 | . 60 60 96 30 39 75 75 124 69 . 75 223 244 Shots Fired 468 | . 50 27 40 1 22 9 8 22 4 . 18 202 65 Gun 262 | . 30 . . . 18 . . . . . 1 148 65 Cannon 54 | . . . . . . . . . . . . 54 . Launcher 152 | . 20 27 40 1 4 9 8 22 4 . 17 . . Special . | . . . . . . . . . . . . . . Kinetic 160 | . 14 . . . 18 . . . . . . 116 12 Thermal 92 | . . . . . . . . . . . 1 38 53 Explosive 110 | . 20 27 21 1 1 2 3 14 4 . 17 . . Electromagnetic 106 | . 16 . 19 . 3 7 5 8 . . . 48 . Robot Hit Streak 29 | . 8 17 23 2 20 24 4 8 4 . 6 25 29 Robot Miss Streak 7 | . 7 1 2 . . 1 1 3 . . 2 3 2 Penetration Max . | . . . . . . . . . . . . . . Secondary Targets 5 | . 3 . . . . . . . . . . . 2 Max Gunslinging Chain 1 | . 1 . . . . . . . . . . . 1 Shots Hit Robots 449 | . 25 21 20 1 18 5 6 7 3 6 40 193 104 Core Hits 317 | . 29 30 40 1 15 13 6 32 4 4 31 71 41 Critical Kills 1 | . . . . . . . . . . . . 1 . Critical Parts Destroyed 6 | . . . . . 1 . . . . . . 3 2 Critical Strikes 36 | . . . . . 1 . . . . . 5 21 9 Burn 8 | . . . . . . . . . . . . 6 2 Destroy 8 | . . . . . 1 . . . . . . 5 2 Blast 4 | . . . . . . . . . . . . 4 . Corrupt 3 | . . . . . . . . . . . . 3 . Sever 8 | . . . . . . . . . . . 5 3 . Impale 5 | . . . . . . . . . . . . . 5 Melee Attacks 154 | . . . . . . . . . . 6 44 36 68 Impact . | . . . . . . . . . . . . . . Slashing 125 | . . . . . . . . . . 6 44 34 41 Piercing 29 | . . . . . . . . . . . . 2 27 Sneak Attacks 6 | . . . . . . . . . . . . 2 4 Combat Hostiles 1 | . . . . . . . . . . . . 1 . Follow-up Attacks 6 | . . . . . . . . . . . . . 6 Damage Inflicted 21086 | . 1105 984 1620 42 555 607 405 2056 254 386 2492 5724 4856 Guns 4905 | . 179 . . . 301 . . . . . . 2981 1444 Cannons 1728 | . . . . . . . . . . . . 1728 . Explosions 8724 | . 926 984 1620 26 254 607 390 2013 254 . 1650 . . Melee 5635 | . . . . . . . . . . 386 842 998 3409 Ramming 94 | . . . . 16 . . 15 43 . . . 17 3 Kinetic 3612 | . 100 . . . 301 . . . . . . 2936 275 Thermal 1978 | . . . 69 . 48 25 . 57 . . . 610 1169 Explosive 6712 | . 926 984 841 26 74 144 212 1601 254 . 1650 . . Electromagnetic 3055 | . 79 . 710 . 132 438 178 355 . . . 1163 . Impact . | . . . . . . . . . . . . . . Slashing 4544 | . . . . . . . . . . 386 842 839 2477 Piercing 1091 | . . . . . . . . . . . . 159 932 Highest Corruption 37 | . . . 3 . 4 . 3 3 3 3 37 . . Average Corruption 11 | . . . 1 . 4 . 3 3 3 3 26 . . Corruption Purged . | . . . . . . . . . . . . . . Corruption Blocked 30 | . . . . . . . . . . . . 16 14 Effects 74 | . . . 4 . 9 . 1 8 8 6 38 . . Message Errors 18 | . . . 2 . 3 . . 2 1 1 9 . . Matter Fused 15 | . . . 1 . 2 . . 2 3 1 6 . . Heat Flow Errors 10 | . . . . . 2 . 1 . . 3 4 . . Energy Discharges 11 | . . . . . . . . . 2 1 8 . . Parts Rejected 2 | . . . . . . . . 1 . . 1 . . Data Loss (minor) 12 | . . . 1 . 2 . . 3 2 . 4 . . Data Loss (major) 4 | . . . . . . . . . . . 4 . . Misdirections 1 | . . . . . . . . . . . 1 . . Weapon Failures 1 | . . . . . . . . . . . 1 . . Overload Shots . | . . . . . . . . . . . . . . Overflow Damage 1184 | . 18 3 20 1 10 . 8 106 3 50 88 177 700 Projectiles 99 | . . . . . . . . . . . . 99 . Explosions 240 | . 18 3 20 . 10 . 8 106 3 . 72 . . Melee 845 | . . . . 1 . . . . . 50 16 78 700 Knockbacks 5 | . . . . . . . . . . . . 5 . Impact . | . . . . . . . . . . . . . . Kinetic 4 | . . . . . . . . . . . . 4 . Secondary 1 | . . . . . . . . . . . . 1 . Self-Inflicted Damage 567 | . 223 61 72 . . . . 13 . . 198 . . Shots 23 | . 7 3 5 . . . . 1 . . 7 . . Rammed 8 | . . . . . . . . . . . . 7 1 Targets Rammed 16 | . . . . 1 . . 3 4 . . . 7 1 Kicked 8 | . . . . 1 . . 3 4 . . . . . Crushed . | . . . . . . . . . . . . . . Highest Temperature 286 | . 8 . 63 . 138 12 119 69 3 286 263 221 . Average Temperature 61 | . 4 . 23 . 35 7 49 17 2 126 77 65 . Received Heat Transfer 2031 | . 48 111 117 . . . 9 27 . . 526 811 382 Siege Activations 5 | . . . . . . . . . . . . 3 2 Total Turns 114 | . . . . . . . . . . . . 62 52 Longest Duration 42 | . . . . . . . . . . . . 36 42 Martial Activations . | . . . . . . . . . . . . . . Shielding Activations . | . . . . . . . . . . . . . . Robots Disrupted . | . . . . . . . . . . . . . . Combat Hostiles . | . . . . . . . . . . . . . . Robots Corrupted 4 | . . . 2 . . . . . . . . 2 . Combat Hostiles 3 | . . . 1 . . . . . . . . 2 . Parts Fried 9 | . . . 5 . . . . 2 . . . 2 . Impact Corruptions 1 | . . . . 1 . . . . . . . . . Robots Melted . | . . . . . . . . . . . . . . Combat Hostiles . | . . . . . . . . . . . . . . Parts Melted 14 | . . . . . . 2 . . . . . 12 . Heat Transferred 4182 | . . . 50 . 100 . . 50 . . . 1625 2357 Parts Sabotaged . | . . . . . . . . . . . . . . Parts Stolen . | . . . . . . . . . . . . . . Parts Stripped . | . . . . . . . . . . . . . . Power Chain Reactions 6 | . . . 1 . 2 1 1 1 . . . . . Alert | -11 -10 -10 -8 -7 -6 -5 -4 -4 -4 -4 -3 -3 -3 ------- Run | Yrd Mat Sub Mat Fac Fac Fac Fac Upp Upp Zhi Pro Res Qua Maximum Alert Level 1 | . 1 . 1 . . . . . . . . 1 . Low Security (%) 91 | 100 81 . 97 100 100 100 100 . . . . 70 100 Level 1 8 | . 18 . 2 . . . . . . . . 29 . Level 2 . | . . . . . . . . . . . . . . Level 3 . | . . . . . . . . . . . . . . Level 4 . | . . . . . . . . . . . . . . Level 5 . | . . . . . . . . . . . . . . High Security . | . . . . . . . . . . . . . . Max Security . | . . . . . . . . . . . . . . Peak Influence 244 | . 215 . 226 8 94 70 102 . . . . 244 176 Initial 103 | . . . . . . . . . . . . . 103 Average 70 | . 141 . 68 . 17 26 14 . . . . 122 94 Influence Increases 3553 | . 385 120 639 8 116 146 102 375 90 10 285 676 601 Destroy 0b10 Robot/C 2120 | . 180 120 200 . 60 60 40 320 80 . 200 460 400 Destroy 0b10 Robot/NC 215 | . 55 . 55 5 15 20 10 . . 10 5 15 25 Destroy Leader 332 | . 36 . 46 2 12 12 . 40 10 . 20 102 52 Successful Hack 75 | . . . 28 . . 18 . . . . . 5 24 Disable Machine 165 | . 45 . 75 . 15 . . . . . . 15 15 Anti-Garrison Action 150 | . . . 150 . . . . . . . . . . Destroy Structure 301 | . 69 . 85 1 14 36 52 . . . . 34 10 Lose Combat Pursuer 195 | . . . . . . . . 15 . . 60 45 75 Influence Decreases 3533 | . 210 295 639 8 116 146 102 272 191 12 285 491 766 Entered New Map 190 | . . 85 . . . . . . 21 2 . . 82 Time Decay 2459 | . 210 190 317 8 116 146 102 212 170 10 185 349 444 Lost Part 552 | . . 20 10 . . . . 40 . . 100 142 240 Lost Ally 20 | . . . . . . . . 20 . . . . . Purge Threat 312 | . . . 312 . . . . . . . . . . Squads Dispatched 35 | . 2 . 4 3 3 2 4 . . . . 11 6 Investigation 4 | . . . 1 . . . . . . . . 2 1 Extermination 10 | . . . . 1 1 1 2 . . . . 3 2 Reinforcement 15 | . 2 . . 2 2 1 2 . . . . 3 3 Assault 2 | . . . 2 . . . . . . . . . . Garrison 4 | . . . 1 . . . . . . . . 3 . Intercept . | . . . . . . . . . . . . . . Searches Triggered . | . . . . . . . . . . . . . . Construction Impeded 1 | . . . . . . . . . . . . 1 . Haulers Reinforced 1 | . . . . . 1 . . . . . . . . Active Scanning Responses . | . . . . . . . . . . . . . . Cargo Convoy Interrupts . | . . . . . . . . . . . . . . Stealth | -11 -10 -10 -8 -7 -6 -5 -4 -4 -4 -4 -3 -3 -3 --------- Run | Yrd Mat Sub Mat Fac Fac Fac Fac Upp Upp Zhi Pro Res Qua Distress Signals 14 | . 3 . 2 2 2 2 . . . . . . 3 Communications Jammed . | . . . . . . . . . . . . . . Distress Signals . | . . . . . . . . . . . . . . Times Spotted 201 | . 16 18 13 11 9 13 10 15 5 . 20 34 37 Peak Tracking Total 8 | . 6 6 3 2 3 4 2 5 4 . 4 6 8 Tactical Retreats 8 | . . . . . . . . 1 . . 1 2 4 Traps | -11 -10 -10 -8 -7 -6 -5 -4 -4 -4 -4 -3 -3 -3 ------- Run | Yrd Mat Sub Mat Fac Fac Fac Fac Upp Upp Zhi Pro Res Qua Traps Triggered 9 | . . . 2 . 1 . 1 . . . . 4 1 Indirectly . | . . . . . . . . . . . . . . Trap Hack Attempts . | . . . . . . . . . . . . . . Triggered . | . . . . . . . . . . . . . . Disarmed . | . . . . . . . . . . . . . . Reprogrammed . | . . . . . . . . . . . . . . Reused 1 | . . . . . . . . 1 . . . . . Traps Extracted . | . . . . . . . . . . . . . . Installed 1 | . . . . . . . . 1 . . . . . Triggered 1 | . . . . . . . . 1 . . . . . Most Traps Carried 1 | . . 1 1 1 1 1 1 1 . . . . . Machines | -11 -10 -10 -8 -7 -6 -5 -4 -4 -4 -4 -3 -3 -3 ---------- Run | Yrd Mat Sub Mat Fac Fac Fac Fac Upp Upp Zhi Pro Res Qua Machines Disabled 14 | . 3 2 6 . 1 . . . . . . 1 1 Max in Single Turn 2 | . 1 1 2 . 1 . . . . . . 1 1 Garrison Access 3 | . . . 1 . 1 . . . . . . 1 . Machines Repaired . | . . . . . . . . . . . . . . Machines Dismantled . | . . . . . . . . . . . . . . Machines Sabotaged . | . . . . . . . . . . . . . . Overloaded Fab Kills . | . . . . . . . . . . . . . . Hacking | -11 -10 -10 -8 -7 -6 -5 -4 -4 -4 -4 -3 -3 -3 --------- Run | Yrd Mat Sub Mat Fac Fac Fac Fac Upp Upp Zhi Pro Res Qua Machines Accessed 39 | . 2 . 7 1 3 1 4 . . 6 1 10 4 Terminals 15 | . . . 6 . . . 2 . . . 1 4 2 Fabricators 5 | . . . . . . 1 1 . . . . 3 . Repair Stations 1 | . . . . . 1 . . . . . . . . Recycling Units 6 | . 2 . 1 . 1 . 1 . . . . 1 . Scanalyzers 2 | . . . . . . . . . . . . 1 1 Garrison Access 4 | . . . . 1 1 . . . . . . 1 1 Total Hacks 88 | . 7 . 24 1 3 2 8 . . 19 1 16 7 Successful 48 | . 5 . 13 . 2 1 2 . . 19 1 4 1 Failed 40 | . 2 . 11 1 1 1 6 . . . . 12 6 Catastrophic 14 | . . . 4 . . . 1 . . . . 7 2 Database Lockouts . | . . . . . . . . . . . . . . Manual 35 | . . . 20 . . 2 3 . . . . 7 3 Terminals 36 | . . . 22 . . . 4 . . . 1 7 2 Fabricators 7 | . . . . . . 2 1 . . . . 4 . Repair Stations 1 | . . . . . 1 . . . . . . . . Recycling Units 15 | . 7 . 2 . 1 . 3 . . . . 2 . Scanalyzers 3 | . . . . . . . . . . . . 1 2 Garrison Access 7 | . . . . 1 1 . . . . . . 2 3 Terminal Hacks 27 | . . . 7 . . . . . . 19 1 . . Record 8 | . . . . . . . . . . 7 1 . . Part Schematic 4 | . . . . . . . . . . 4 . . . Robot Analysis 4 | . . . . . . . . . . 4 . . . Prototype ID Bank 4 | . . . . . . . . . . 4 . . . Level Access Points 1 | . . . 1 . . . . . . . . . . Branch Access Points 1 | . . . 1 . . . . . . . . . . Recycling Unit Index 1 | . . . 1 . . . . . . . . . . Unreport Threat 3 | . . . 3 . . . . . . . . . . Locate Traps 1 | . . . 1 . . . . . . . . . . Fabricator Hacks . | . . . . . . . . . . . . . . Repair Station Hacks . | . . . . . . . . . . . . . . Recycling Unit Hacks 10 | . 5 . 1 . 1 . 2 . . . . 1 . Process 1 | . 1 . . . . . . . . . . . . Report Inventory 5 | . 2 . 1 . . . 1 . . . . 1 . Retrieve Matter 1 | . 1 . . . . . . . . . . . . Retrieve Components 3 | . 1 . . . 1 . 1 . . . . . . Scanalyzer 1 | . . . . . . . . . . . . . 1 Insert Component 1 | . . . . . . . . . . . . . 1 Garrison Access Hacks 2 | . . . . . 1 . . . . . . 1 . Seal Access 2 | . . . . . 1 . . . . . . 1 . Unauthorized Hacks 8 | . . . 5 . . 1 . . . . . 2 . Terminals 5 | . . . 4 . . . . . . . . 1 . Botnet 5 | . . . 4 . . . . . . . . 1 . Fabricators 2 | . . . . . . 1 . . . . . 1 . Fabnet 2 | . . . . . . 1 . . . . . 1 . Repair Stations . | . . . . . . . . . . . . . . Recycling Units 1 | . . . 1 . . . . . . . . . . Recyclers 1 | . . . 1 . . . . . . . . . . Scanalyzers . | . . . . . . . . . . . . . . Garrison Access . | . . . . . . . . . . . . . . Data Cores Recovered . | . . . . . . . . . . . . . . Used . | . . . . . . . . . . . . . . Hacking Detections 26 | . . . 7 1 . 1 3 . . . . 10 4 Full Trace Events 4 | . . . 1 . . . . . . . . 2 1 Feedback Events 1 | . . . 1 . . . . . . . . . . Corruption 1 | . . . 1 . . . . . . . . . . Feedback Blocked . | . . . . . . . . . . . . . . Robot Schematics Acquired 3 | . . . . . . . . . . . . . 3 Robots Built . | . . . . . . . . . . . . . . Authchips . | . . . . . . . . . . . . . . Time . | . . . . . . . . . . . . . . Total Robot Build Rating . | . . . . . . . . . . . . . . Part Schematics Acquired 7 | . . . . . . . . . . 4 . . 3 Parts Built . | . . . . . . . . . . . . . . Authchips . | . . . . . . . . . . . . . . Time . | . . . . . . . . . . . . . . Total Part Build Rating . | . . . . . . . . . . . . . . Part Studies Acquired . | . . . . . . . . . . . . . . Parts Repaired . | . . . . . . . . . . . . . . Time . | . . . . . . . . . . . . . . Parts Recycled . | . . . . . . . . . . . . . . Recycled Matter 268 | . 268 . . . . . . . . . . . . Retrieved Matter 290 | . 290 . . . . . . . . . . . . Retrieved Components 7 | . 2 . . . 2 . 3 . . . . . . Parts Scanalyzed 1 | . . . . . . . . . . . . . 1 Part Schematics Acquired . | . . . . . . . . . . . . . . Parts Damaged . | . . . . . . . . . . . . . . Bothacking | -11 -10 -10 -8 -7 -6 -5 -4 -4 -4 -4 -3 -3 -3 ------------ Run | Yrd Mat Sub Mat Fac Fac Fac Fac Upp Upp Zhi Pro Res Qua Used RIF Installer . | . . . . . . . . . . . . . . Robots Hacked 1 | . . . . . . . . 1 . . . . . Non-combat . | . . . . . . . . . . . . . . Combat 1 | . . . . . . . . 1 . . . . . Robot Hacks Applied . | . . . . . . . . . . . . . . Relay Couplers Released 1 | . . . 1 . . . . . . . . . . Machine Destruction 1 | . . . 1 . . . . . . . . . . Fabnet Peak Effective % 3 | . . . . . . . 3 3 3 3 1 1 1 Autooverrided 1 | . . . . . . . . 1 . . . . . Robots Rewired . | . . . . . . . . . . . . . . Allies Hacked . | . . . . . . . . . . . . . . Hacks Repelled . | . . . . . . . . . . . . . . Allies | -11 -10 -10 -8 -7 -6 -5 -4 -4 -4 -4 -3 -3 -3 -------- Run | Yrd Mat Sub Mat Fac Fac Fac Fac Upp Upp Zhi Pro Res Qua Total Allies 1 | . . . . . . . . 1 . . . . . Largest Group . | . . . . . . . . . . . . . . Highest-Rated Group . | . . . . . . . . . . . . . . Highest-Rated Ally . | . . . . . . . . . . . . . . Total Orders . | . . . . . . . . . . . . . . Ally Attacks . | . . . . . . . . . . . . . . Total Damage . | . . . . . . . . . . . . . . Kills . | . . . . . . . . . . . . . . Allies Corrupted . | . . . . . . . . . . . . . . Allies Melted . | . . . . . . . . . . . . . . Intel | -11 -10 -10 -8 -7 -6 -5 -4 -4 -4 -4 -3 -3 -3 ------- Run | Yrd Mat Sub Mat Fac Fac Fac Fac Upp Upp Zhi Pro Res Qua Active Infowar (turns) 2973 | . . . . . 521 451 729 249 . . . 16 1007 Sensors 2973 | . . . . . 521 451 729 249 . . . 16 1007 Robot Analysis Total 4 | . . . . . . . . . . 4 . . . Derelict Logs Recovered 3 | . . 1 . . . . . 1 1 . . . . Drone Launches . | . . . . . . . . . . . . . . Drone Recoveries . | . . . . . . . . . . . . . . Exploration | -11 -10 -10 -8 -7 -6 -5 -4 -4 -4 -4 -3 -3 -3 ------------- Run | Yrd Mat Sub Mat Fac Fac Fac Fac Upp Upp Zhi Pro Res Qua Turns Passed 9790 | 96 499 1289 782 676 521 451 729 465 345 278 965 1568 1126 Spaces Moved 5321 | 59 194 608 551 429 333 263 456 344 205 169 639 611 460 Core 60 | 13 45 . . . . . . . . . . . 2 Treads 1211 | 46 149 253 . . . . . . . . . 305 458 Legs 3547 | . . 178 309 429 333 263 456 344 205 169 639 222 . Wheels 503 | . . 177 242 . . . . . . . . 84 . Hover . | . . . . . . . . . . . . . . Flight . | . . . . . . . . . . . . . . Fastest Speed 50 | 50 100 120 110 120 120 120 120 120 120 120 120 120 145 Average Speed 139 | 138 200 157 116 120 120 120 120 120 161 147 120 179 159 Slowest Speed 270 | 160 240 240 260 120 120 120 120 190 190 190 120 270 160 Overloaded Moves . | . . . . . . . . . . . . . . Propulsion Burnouts . | . . . . . . . . . . . . . . Robots Hopped . | . . . . . . . . . . . . . . Potential Cave-ins 2 | . . . . . . . . . . . 2 . . Cave-ins Triggered . | . . . . . . . . . . . . . . Teleports 1 | . . . . . . . . . . . 1 . . Exploration Rate (%) 34 | 4 32 53 38 13 12 10 15 53 40 60 75 20 57 Regions Visited 13 Branch Regions 6 Pre-discovered Areas 3 | . . . . . . . . . . 3 . . . Known Exits Taken 7 | . . . 1 . 1 1 1 1 1 1 . . . Unknown Exits Taken 6 | 1 1 1 . 1 . . . . . . 1 1 . Scrap Searched 4 | . . . . . . . . 1 2 . 1 . . Spaces Dug 23 | . . . 15 . . . . . . . 1 3 4 Terrain Destroyed 640 | . 97 92 101 1 13 18 26 134 24 . 115 15 4 Melee 8 | . . . . . . . . . . . 1 3 4 Projectile 12 | . . . . . . . . . . . . 12 . AOE 620 | . 97 92 101 1 13 18 26 134 24 . 114 . . Terrain Rammed . | . . . . . . . . . . . . . . Walls Destroyed . | . . . . . . . . . . . . . . Machines Disabled . | . . . . . . . . . . . . . . Actions | -11 -10 -10 -8 -7 -6 -5 -4 -4 -4 -4 -3 -3 -3 --------- Run | Yrd Mat Sub Mat Fac Fac Fac Fac Upp Upp Zhi Pro Res Qua Total 7054 | 71 256 911 656 590 443 389 630 374 215 190 748 904 677 Wait 984 | . 16 266 39 151 74 107 155 1 1 . 32 64 78 Move 5308 | 58 193 607 550 428 332 262 455 343 204 168 638 610 460 Hop . | . . . . . . . . . . . . . . Pick Up 85 | 8 6 7 14 4 1 3 3 1 . 2 4 23 9 Fast Attach 71 | 4 2 2 8 1 . . 3 . 2 5 4 27 13 Attach 66 | . 6 3 3 . 5 4 1 5 2 . 9 21 7 Detach 22 | . 3 1 2 . 5 . 1 1 2 2 . 5 . Swap 40 | . 2 2 3 . 1 4 1 1 1 2 2 13 8 Drop 66 | 1 2 6 9 4 3 2 3 1 . 5 . 16 14 Fire 240 | . 26 14 28 1 22 7 5 16 3 . 15 77 26 Melee 147 | . . . . . . . . . . 6 44 36 61 Ram . | . . . . . . . . . . . . . . Kick 8 | . . . . 1 . . 3 4 . . . . . Crush 8 | . . . . . . . . . . . . 7 1 Escape Stasis 5 | . . . . . . . . . . . . 5 . Rewire . | . . . . . . . . . . . . . . Trap 1 | . . . . . . . . 1 . . . . . Miscellaneous 3 | . . 3 . . . . . . . . . . . Route ------- -11/Scrapyard -10/Materials (discovered 2 exits: [*Mat] / [*Sub]) -10/Subcaves (discovered 2 exits: *Mat / [*Rec]) -8/Materials (discovered 3 exits: *Fac x3) -7/Factory (discovered 2 exits: *Fac x2) -6/Factory (discovered 2 exits: *Fac / *Low) -5/Factory -4/Factory -4/Upper Caves -4/Upper Caves -4/Zhirov -3/Proximity Caves -3/Research -3/Quarantine History --------- Turn | Location | Event 11 | -11/Scrapyard | Discovered new exit (range 16) 97 | -11/Scrapyard | Entered Materials 312 | -10/Materials | Build established: Mutant 519 | -10/Materials | Discovered new exit (range 16) 572 | -10/Materials | Discovered new exit (range 9) 596 | -10/Materials | Entered Subcaves 692 | -10/Subcaves | Ambushed by swarm of Subdwellers 780 | -10/Subcaves | A swath of the cavern ceiling suddenly collapsed 971 | -10/Subcaves | Discovered new exit (range 16) 1409 | -10/Subcaves | Curiously followed by a Cobbler waking with a query about "LVR3C" 1490 | -10/Subcaves | Ambushed by Subdweller buried in earth 1495 | -10/Subcaves | Ambushed by Subdweller buried in earth 1825 | -10/Subcaves | Discovered new exit (range 6) 1885 | -10/Subcaves | Entered Materials 1885 | -8/Materials | Evolved 4 slots: Propulsion x1, Utility x2, Weapon x1 2401 | -8/Materials | Garrison activated, responded to threat 2418 | -8/Materials | Build established: Bomber 2544 | -8/Materials | Identified exit to Factory 2616 | -8/Materials | Met 7R-MNS 2667 | -8/Materials | Entered Factory 2667 | -7/Factory | Evolved 2 slots: Power x1, Propulsion x1 2668 | -7/Factory | Caught up to 7R-MNS 2795 | -7/Factory | Discovered new exit (range 14) 3326 | -7/Factory | Discovered new exit (range 4) 3343 | -7/Factory | Entered another Factory area 3343 | -6/Factory | Evolved 2 slots: Utility x2 3344 | -6/Factory | Caught up to 7R-MNS 3730 | -6/Factory | Build established: Mutant 3845 | -6/Factory | Discovered new exit (range 4) 3846 | -6/Factory | Discovered new exit (range 10) 3850 | -6/Factory | Identified exit to Lower Caves 3859 | -6/Factory | Identified exit to Factory 3864 | -6/Factory | Entered another Factory area 3864 | -5/Factory | Evolved 2 slots: Utility x2 3865 | -5/Factory | Caught up to 7R-MNS 4293 | -5/Factory | Spotted B-75 Beast 4299 | -5/Factory | Discovered new exit (range 5) 4314 | -5/Factory | Identified exit to Factory 4315 | -5/Factory | Entered another Factory area 4315 | -4/Factory | Evolved 2 slots: Utility x2 4316 | -4/Factory | Caught up to 7R-MNS 4849 | -4/Factory | Found Prototype Launcher 4849 | -4/Factory | Identified Com. Tesla Bomb Launcher 5019 | -4/Factory | Discovered new exit (range 9) 5038 | -4/Factory | 7R-MNS successfully reached the Upper Caves 5043 | -4/Factory | Identified exit to Upper Caves 5044 | -4/Factory | Entered Upper Caves 5106 | -4/Upper Caves | Destroyed 7 combat bots 5315 | -4/Upper Caves | Destroyed 9 combat bots 5324 | -4/Upper Caves | Lost 4 parts (1n2u1w) 5465 | -4/Upper Caves | Learned Research security intel 5497 | -4/Upper Caves | Discovered new exit (range 9) 5507 | -4/Upper Caves | Identified exit to Upper Caves 5509 | -4/Upper Caves | Entered another Upper Caves area 5543 | -4/Upper Caves | Encountered a Warlord checkpoint 5551 | -4/Upper Caves | Learned Research emergency access door positions 5644 | -4/Upper Caves | Build established: Scavenger-Mutant 5846 | -4/Upper Caves | Discovered new exit (range 5) 5852 | -4/Upper Caves | Identified exit to Zhirov 5854 | -4/Upper Caves | Entered Zhirov 5854 | -4/Zhirov | Discovered new exit (range 3) 5891 | -4/Zhirov | Met Zhirov 5923 | -4/Zhirov | Learned location of Quarantine (-3) 5923 | -4/Zhirov | Learned location of Testing (-2) 5923 | -4/Zhirov | Learned location of Command (-1) 5940 | -4/Zhirov | Zhirov requested help retrieving the SGEMP Prototype 5973 | -4/Zhirov | Found Alien Artifact 5973 | -4/Zhirov | Identified Integrated Dissipator 5973 | -4/Zhirov | Installed Integrated Dissipator, increased core heat dissipation (+20) 5995 | -4/Zhirov | Found Alien Artifact 6131 | -4/Zhirov | Identified exit to Proximity Caves 6132 | -4/Zhirov | Entered Proximity Caves 6310 | -3/Proximity Caves | Build established: Mutant 6423 | -3/Proximity Caves | System corruption reached 10% 6468 | -3/Proximity Caves | System corruption reached 30% 6498 | -3/Proximity Caves | Lost 10 parts (9u1w) 6628 | -3/Proximity Caves | Lost 3 parts (3u) 6832 | -3/Proximity Caves | Identified Transdimensional Reconstructor 6832 | -3/Proximity Caves | Warped through subspace 7091 | -3/Proximity Caves | Discovered new exit (range 5) 7097 | -3/Proximity Caves | Entered Research 7097 | -3/Research | Evolved 2 slots: Utility x2 7222 | -3/Research | Garrison activated, responded to threat 7322 | -3/Research | Lost 13 parts (3p4n4u2w) 7613 | -3/Research | Build established: Scavenger-Mutant 7682 | -3/Research | Lost 3 parts (1n2u) 7765 | -3/Research | Lost 3 parts (1n1u1w) 7885 | -3/Research | Spotted B-86 Titan 7920 | -3/Research | Found Launcher Loader 8031 | -3/Research | Build established: Scavenger-Gunner 8329 | -3/Research | Spotted B-86 Titan 8433 | -3/Research | Lost 3 parts (2u1w) 8623 | -3/Research | Discovered new exit (range 2) 8665 | -3/Research | Entered Quarantine 8802 | -3/Quarantine | Core integrity fell below 50% 9100 | -3/Quarantine | Found Alien Slashing Weapon 9100 | -3/Quarantine | Identified Sigix Broadsword 9254 | -3/Quarantine | Scanned by Researcher 9367 | -3/Quarantine | Lost 5 parts (1n1u3w) 9396 | -3/Quarantine | Build established: Scavenger-Mutant 9577 | -3/Quarantine | Found Alien Artifact 9577 | -3/Quarantine | Identified Core Reset Matrix 9577 | -3/Quarantine | Used Core Reset Matrix 9581 | -3/Quarantine | Detected hypermatrix surge 9581 | -3/Quarantine | Sensed 10 artifacts in vicinity 9710 | -3/Quarantine | Core integrity fell below 20% 9780 | -3/Quarantine | Lost 16 parts (2p3n9u2w) 9791 | -3/Quarantine | Destroyed by Y-72 Warden with Railgun Last Messages --------------- 09742_ M-36 Artificer destroyed. 09744_ Acquired 36 matter. 09745_ Destroyed Unknown Hover Unit. 09746_ P-80 Master resets P-80 Master, system corruption cleaned. 09748_ Imp. Corruption Screen intercepted 1% system corruption. 09748_ P-80 Master destroyed. 09749_ Slug penetrates Cryopreservation Unit. 09749_ Coil Gun destroyed. 09754_ Slug penetrates Cryopreservation Unit. 09759_ H-77 Assassin suffers critical hit (Impale). 09759_ Destroyed Unknown Ballistic Gun. 09760_ Penetrated by Slug. 09763_ H-77 Assassin suffers critical hit (Impale). 09763_ H-77 Assassin destroyed. 09788_ U-05 Engineer builds a Wall. 09791_ Penetrated by Slug. Map ----- +----------------------------------------------------+ | ??????????????????????####+### #?= """??????? | | ??????????????????????# #? "T"??????? | | ??????????????????????# # ??????? | | ??????????????????????# # """ ""???????? | | ??????????????????????# + """ ""???????? | | ??????????????????????####+### # """ ""???????? | | ?????????????????????????????# # ??????? | | ?????????????????????????????# #? ] ?????? | | ?????????????????????????????# ##########?????? | | ?????????????????????????????# #! ! ?? #????? | | ?????????????????????????????# # ? ##???? | | ?????????????????????????????# # """ """ "???? | | ?????????????????????????????# # """ """ ""#??? | | ?????????????????????????????# # """ """ ""#??? | | ?????????????????????????????# # = ""#??? | | ?????????????????????????????# # """[""" ""#??? | | ?????????????????????????????# # ""[*!"" T"#??? | | ?????????????????????????????#^ + """%!"" ""#??? | | ?????????????????????????????+ # ![!!=%*!""#??? | | ?????????????????????????????# # ""!!!%= "#??? | | ?????????????????????????????# # ""%%"=" #??? | | ???????????????????########### # " ==""" "#??? | | ???????????????????# # = ###??? | | ???????????????????# # * #????? | | ???????????????????# u# * #????? | | ???????????????????# @ ###########????? | | ???????????????????### ###########?????????????? | | ?????????????????????# ????????????????????????? | | ?????????????????????#YY?????????????????????????? | | ?????????????????????###?????????????????????????? | | ?????????????????????????????????????????????????? | | ?????????????????????????????????????????????????? | | ?????????????????????????????????????????????????? | | ?????????????????????????????????????????????????? | | ?????????????????????????????????????????????????? | | ?????????????????????????????????????????????????? | | ?????????????????????????????????????????????????? | | ?????????????????????????????????????????????????? | | ?????????????????????????????????????????????????? | | ?????????????????????????????????????????????????? | | ?????????????????????????????????????????????????? | | | | | | | | | | | | | | | | | | | +----------------------------------------------------+ Best States ------------- Heat Dissipation 123 Energy Generation 46 Energy Capacity 565 Matter Stores 655 Matter Capacity 700 Sight Range 16 Robot Scan Range 18 Terrain Scan Density 110 Power Amplification 30 Corruption Block 20 Armor Coverage 800 Resistance: KI 30 Resistance: TH 25 Resistance: EX 50 Propulsion Shielding 66 Weapon Cycling 25 Phase Shifting 10 Evasion (%) 67 Targeting Accuracy 14 Target Analysis 12 Recoil Reduction 8 Matter Filtering 65 Offensive Hacking 14 Item Schematics ----------------- None Robot Schematics ------------------ None Fabricated ------------ Nothing Repaired ---------- Nothing Studied --------- None Alien Tech Used ----------------- Integrated Dissipator Transdimensional Reconstructor Sigix Broadsword Core Reset Matrix Achievements -------------- Escorted To Danger Challenges ------------ None Game ------ Seed SigixMakeshiftCoupler Manual? 0 Play Time 01:27:42 Cumulative 120.3 hours Start 2026.02.20 @ 07:05:02 End 2026.02.20 @ 08:32:41 Sessions 1 Manual Loads 0 Difficulty Rogue Special Mode None Game No. 79 Rogue 75 Adventurer 4 Explorer 0 Win Type - Total 5 Types 5/0/0/0/0/0/0/0/0/0 Lore% 71 Gallery% 53 Achievement% 43 Wizard Run 0 Options --------- Layout 2 ASCII 0 Keyboard 1 Movement Vi Keybinds 0 Fullscreen 2 Font 24/Smallcaps Map View 50x44 Zoom Use 0% Tactical HUD 1 Map Filters NONE Filters NONE Steam 1 RUN: cac33fe9-9784-4e13-b7fe-da1ae8643996